bitfinex/quotes_ETHUSD_20251010
["timestamp","ask_amount","ask_price","bid_price","bid_amount"]
[1760086265601,1e-08,4345.9,4345.8,8.63872937]
[1760086265763,1e-08,4345.9,4345.8,9.00173344]
[1760086268604,0.01,4346.9,4345.9,2.30101935]
[1760086268902,0.01,4346.9,4346.8,7.26761314]
[1760086269102,0.01,4346.9,4346.8,7.6094112]
[1760086269103,1e-08,4346.9,4346.8,7.6094112]
[1760086269404,0.01,4347.9,4347.0,2.30043708]
[1760086269699,0.01,4347.9,4347.8,2.3000138]
[1760086270099,0.01,4347.9,4347.8,2.6622138]
[1760086270301,0.01,4347.9,4347.8,3.6597833]
[1760086271102,0.01,4347.9,4347.8,4.1029833]
[1760086274103,0.01,4347.9,4347.8,4.2173833]
[1760086274300,0.01,4347.9,4347.8,9.06772909]
[1760086274545,0.01,4347.9,4347.8,4.20255887]
[1760086274760,0.01,4347.9,4347.8,9.06772909]
[1760086276911,0.0092,4347.9,4347.8,9.06772909]
[1760086287575,0.0092,4347.9,4347.8,8.33048337]
[1760086290276,0.0092,4347.9,4347.8,8.33148337]
[1760086290479,0.0112,4347.9,4347.8,8.33148337]
[1760086294482,0.0112,4347.9,4347.8,7.96928337]
[1760086294895,0.0112,4347.9,4347.8,8.33148337]
[1760086295903,0.0112,4347.9,4347.8,2.4154138]
[1760086296296,0.0112,4347.9,4347.8,2.3010138]
[1760086296461,0.0112,4347.9,4347.8,0.001]
[1760086296662,0.486,4347.9,4347.8,0.001]
[1760086296861,0.0112,4347.9,4347.8,0.001]
[1760086297161,0.837,4347.9,4347.8,0.001]
[1760086297566,0.6004,4347.9,4347.8,0.001]
[1760086298495,0.1256,4347.9,4347.8,0.001]
[1760086299205,0.1248,4347.9,4347.8,0.001]
[1760086300203,0.5996,4347.9,4347.8,0.001]
[1760086303831,0.8362,4347.9,4347.8,0.001]
[1760086304119,3.1361609,4347.9,4347.8,0.001]
[1760086304318,3.16491041,4347.9,4347.8,0.001]
[1760086308482,3.05051041,4347.9,4347.8,0.001]
[1760086308784,0.7218,4347.9,4347.8,0.001]
[1760086309846,0.4852,4347.9,4347.8,0.001]
[1760086310959,2.7851609,4347.9,4347.8,0.001]
[1760086311158,0.4852,4347.9,4347.8,0.001]
[1760086311452,3.0222609,4347.9,4347.8,0.001]
[1760086311655,0.75104951,4347.9,4347.8,0.001]
[1760086311857,3.0222609,4347.9,4347.8,0.001]
[1760086312035,0.7223,4347.9,4347.8,0.001]
[1760086312240,3.0222609,4347.9,4347.8,0.001]
[1760086312650,0.4852,4347.9,4347.8,0.001]
[1760086312825,0.467,4347.9,4347.8,0.001]
[1760086314026,0.0104,4347.9,4347.8,0.001]
[1760086314451,0.1248,4347.9,4347.8,0.001]
[1760086315365,0.0104,4347.9,4347.8,2.53111935]
[1760086315564,0.0104,4347.9,4347.8,2.89331935]
[1760086317357,0.0104,4347.9,4347.8,2.90814378]
[1760086318557,0.0104,4347.9,4347.8,2.89331935]
[1760086319746,0.0104,4347.9,4347.8,2.53111935]
[1760086321190,0.0104,4347.9,4347.8,2.89331935]
[1760086321405,0.0096,4347.9,4347.8,2.53111935]
[1760086321964,0.6839,4347.9,4347.8,0.001]
[1760086322166,0.0096,4347.9,4347.8,0.001]
[1760086322488,0.0096,4347.9,4347.8,2.3010138]
[1760086322986,0.0096,4347.9,4347.8,2.6632138]
[1760086324487,0.0096,4347.9,4347.8,2.992529]
[1760086324783,0.0096,4347.9,4347.8,3.93606838]
[1760086327301,0.0096,4347.9,4347.8,3.60675318]
[1760086327505,0.0096,4347.9,4347.8,3.24455318]
[1760086327710,0.0096,4347.9,4347.8,2.3010138]
[1760086327921,0.0096,4347.9,4347.8,0.001]
[1760086328386,0.0096,4347.9,4347.8,2.6632138]
[1760086331956,0.0096,4347.9,4347.8,2.7776138]
[1760086332889,0.0096,4347.9,4347.8,2.4154138]
[1760086333781,0.0096,4347.9,4347.8,0.001]
[1760086333975,0.0096,4347.9,4347.8,2.3010138]
[1760086335013,0.0096,4347.9,4347.8,0.001]
[1760086337883,0.0096,4347.9,4347.8,2.3010138]
[1760086339087,0.0096,4347.9,4347.8,2.6632138]
[1760086339288,0.0096,4347.9,4347.8,3.60527083]
[1760086339696,0.0096,4347.9,4347.8,3.94941046]
[1760086339896,0.0096,4347.9,4347.8,3.60527083]
[1760086340101,0.0096,4347.9,4347.8,3.62009526]
[1760086340511,0.0096,4347.9,4347.8,3.60527083]
[1760086341413,0.0096,4347.9,4347.8,3.62009526]
[1760086341830,0.0096,4347.9,4347.8,3.24307083]
[1760086341980,0.0096,4347.9,4347.8,3.60527083]
[1760086342288,0.0096,4347.9,4347.8,2.3010138]
[1760086343308,0.0088,4347.9,4347.8,2.3010138]
[1760086344320,0.0088,4347.9,4347.8,0.001]
[1760086344527,0.0088,4347.9,4347.8,2.3010138]
[1760086344817,0.4518,4347.9,4347.8,0.001]
[1760086346503,0.6831,4347.9,4347.8,0.001]
[1760086346907,0.4518,4347.9,4347.8,0.001]
[1760086347119,0.0088,4347.9,4347.8,0.001]
[1760086347351,0.0088,4347.9,4347.8,2.3010138]
[1760086348142,0.0088,4347.9,4347.8,0.001]
[1760086350625,0.4663,4347.9,4347.8,0.001]
[1760086351431,0.0088,4347.9,4347.8,0.001]
[1760086352822,0.4663,4347.9,4347.8,0.001]
[1760086353636,0.0088,4347.9,4347.8,0.001]
[1760086354360,0.4663,4347.9,4347.8,0.001]
[1760086355550,0.6883,4347.9,4347.8,0.001]
[1760086356764,0.71704951,4347.9,4347.8,0.001]
[1760086357777,0.0088,4347.9,4347.8,0.001]
[1760086357975,0.4663,4347.9,4347.8,0.001]
[1760086358177,0.6883,4347.9,4347.8,0.001]
[1760086359450,2.9882609,4347.9,4347.8,0.001]
[1760086360376,0.6883,4347.9,4347.8,0.001]
[1760086360743,0.4663,4347.9,4347.8,0.001]
[1760086360941,2.9882609,4347.9,4347.8,0.001]
[1760086362080,0.6883,4347.9,4347.8,0.001]
[1760086362279,0.03754951,4347.9,4347.8,0.001]
[1760086362459,0.0088,4347.9,4347.8,0.001]
[1760086362868,0.4663,4347.9,4347.8,0.001]
[1760086363381,0.0088,4347.9,4347.8,0.001]
[1760086364083,0.0088,4347.9,4347.8,2.3010138]
[1760086365297,0.008,4347.9,4347.8,2.3010138]
[1760086367361,0.008,4347.9,4347.8,0.001]
[1760086367774,0.444,4347.9,4347.8,0.001]
[1760086368300,0.6771,4347.9,4347.8,0.001]
[1760086368605,0.008,4347.9,4347.8,0.001]
[1760086369306,0.008,4347.9,4347.8,2.3010138]
[1760086369604,0.008,4347.9,4347.8,2.76112404]
[1760086371394,0.008,4347.9,4347.8,3.12332404]
[1760086371786,0.008,4347.9,4347.8,2.76112404]
[1760086373076,0.008,4347.9,4347.8,3.12332404]
[1760086374082,0.008,4347.9,4347.8,2.76112404]
[1760086375367,0.444,4347.9,4347.8,0.001]
[1760086377117,0.008,4347.9,4347.8,2.3010138]
[1760086381508,0.008,4347.9,4347.8,0.001]
[1760086381809,0.008,4347.9,4347.8,2.3010138]
[1760086382211,0.008,4347.9,4347.8,0.001]
[1760086382512,0.4359,4347.9,4347.8,0.001]
[1760086382900,0.6683,4347.9,4347.8,0.001]
[1760086386383,0.008,4347.9,4347.8,0.001]
[1760086386688,0.008,4347.9,4347.8,2.3010138]
[1760086386995,0.008,4347.9,4347.8,2.53111518]
[1760086387396,0.0072,4347.9,4347.8,2.53111518]
[1760086388190,0.0072,4347.9,4347.8,2.3010138]
[1760086391490,0.4351,4347.9,4347.8,2.3010138]
[1760086391690,0.0072,4347.9,4347.8,0.001]
[1760086392214,0.0072,4347.9,4347.8,2.3010138]
[1760086392387,0.0072,4347.9,4347.8,0.001]
[1760086392583,0.69624951,4347.9,4347.8,0.093166]
[1760086392787,0.6675,4347.9,4347.8,0.001]
[1760086393487,0.1216,4347.9,4347.8,2.3010138]
[1760086393898,0.0072,4347.9,4347.8,2.3010138]
[1760086395523,0.0072,4347.9,4347.8,2.65069268]
[1760086398620,0.0072,4347.9,4347.8,0.001]
[1760086398824,0.1216,4347.9,4347.8,0.001]
[1760086399021,0.0072,4347.9,4347.8,2.3010138]
[1760086399627,0.0072,4347.9,4347.8,2.6632138]
[1760086399998,0.0072,4347.9,4347.8,2.3010138]
[1760086400312,0.0072,4347.9,4347.8,2.85305928]
[1760086403646,0.0072,4347.9,4347.8,3.28095928]
[1760086409250,0.0072,4347.9,4347.8,2.7289138]
[1760086409457,0.0064,4347.9,4347.8,2.7289138]
[1760086410566,0.0064,4347.9,4347.8,2.74373823]
[1760086413367,0.0064,4347.9,4347.8,2.7289138]
[1760086413762,0.0064,4347.9,4347.8,2.74373823]
[1760086414672,0.0064,4347.9,4347.8,2.7289138]
[1760086416178,0.0064,4347.9,4347.8,2.3010138]
[1760086417381,0.0064,4347.9,4347.8,3.2415167]
[1760086418980,0.0064,4347.9,4347.8,3.25634113]
[1760086421486,0.0064,4347.9,4347.8,7.38607385]
[1760086421648,0.0064,4347.9,4347.8,7.73344942]
[1760086422047,0.0064,4347.9,4347.8,7.37124942]
[1760086422250,0.0064,4347.9,4347.8,7.48764942]
[1760086423016,0.0064,4347.9,4347.8,3.3579167]
[1760086423214,0.0064,4347.9,4347.8,2.4174138]
[1760086425390,0.0064,4347.9,4347.8,2.43223823]
[1760086425598,0.0064,4347.9,4347.8,3.13151707]
[1760086425813,1e-08,4347.9,4347.8,3.24591707]
[1760086426019,1e-08,4347.9,4347.8,2.90883823]
[1760086426214,1e-08,4347.9,4347.8,4.21044753]
[1760086427911,1e-08,4347.9,4347.8,4.1956231]
[1760086428114,1e-08,4347.9,4347.8,3.85854426]
[1760086430613,1e-08,4347.9,4347.8,3.49634426]
[1760086430931,1e-08,4347.9,4347.8,3.85854426]
[1760086431512,1e-08,4347.9,4347.8,0.1174]
[1760086431707,0.0307462,4348.4,4347.8,0.001]
[1760086432532,0.002,4348.4,4348.0,2.2999017]
[1760086432932,0.002,4348.4,4347.8,0.001]
[1760086433638,0.4576,4348.3,4347.8,0.001]
[1760086433834,0.4576,4348.2,4347.8,0.001]
[1760086434135,0.002,4348.4,4348.0,2.299908]
[1760086434342,0.002,4348.4,4348.2,2.29975807]
[1760086434802,0.002,4348.4,4348.1,2.29984915]
[1760086435143,0.4576,4348.3,4348.1,2.29984915]
[1760086436419,0.002,4348.4,4348.2,2.29978638]
[1760086436624,0.002,4348.4,4348.1,2.29983846]
[1760086438160,0.4513,4348.3,4348.1,2.29983846]
[1760086438360,0.002,4348.4,4348.1,2.29983846]
[1760086438661,0.4513,4348.2,4348.1,2.29983846]
[1760086438822,0.002,4348.4,4347.9,0.01482016]
[1760086439163,0.4513,4348.3,4348.1,2.29981526]
[1760086439363,0.4513,4348.3,4347.8,0.01582114]
[1760086439364,0.4513,4348.3,4348.2,2.29980221]
[1760086439660,0.002,4348.4,4348.3,2.29974932]
[1760086440862,0.002,4348.4,4348.3,2.31456713]
[1760086441563,0.4533,4348.4,4348.2,2.29980069]
[1760086441764,0.4513,4348.3,4348.1,0.1144]
[1760086441967,0.4513,4348.3,4347.8,0.001]
[1760086442264,0.4513,4348.3,4348.1,2.2998445]
[1760086442265,0.5657,4348.3,4348.1,2.2998445]
[1760086442459,0.1144,4348.3,4347.8,0.001]
[1760086442665,0.1144,4348.3,4348.2,2.29980221]
[1760086442826,0.5657,4348.3,4348.2,2.29980221]
[1760086443031,0.5657,4348.3,4348.1,2.29984308]
[1760086443224,0.4513,4348.2,4347.9,2.2999609]
[1760086443431,0.4513,4348.2,4348.0,2.29989859]
[1760086443966,0.4513,4348.2,4347.8,2.30096506]
[1760086443967,0.4513,4348.2,4348.1,2.2998551]
[1760086446568,0.1144,4348.3,4348.2,2.29980221]
[1760086447034,0.5657,4348.3,4347.8,0.001]
[1760086447236,0.4513,4348.2,4347.9,2.29993388]
[1760086447474,0.4513,4348.1,4347.9,2.29993388]
[1760086447680,0.4513,4348.1,4348.0,2.31473027]
[1760086447892,0.4513,4348.1,4348.0,2.299908]
[1760086449804,0.4513,4348.2,4348.0,2.29986477]
[1760086449937,0.4513,4348.1,4348.0,2.29986477]
[1760086450281,0.4513,4348.1,4347.8,2.30096157]
[1760086450442,0.1164,4348.3,4347.8,2.30096157]
[1760086450767,0.4513,4348.2,4347.9,2.29994262]
[1760086450968,0.4513,4348.1,4348.0,2.29988959]
[1760086451752,0.4513,4348.1,4347.9,2.29994832]
[1760086451952,0.4513,4348.0,4347.9,2.29994832]
[1760086453550,0.4505,4348.0,4347.9,2.29994832]
[1760086454190,0.4505,4348.0,4347.9,2.2999609]
[1760086454887,0.4505,4348.0,4347.8,0.001]
[1760086455350,0.1144,4348.1,4347.8,2.30096476]
[1760086455756,0.4513,4348.0,4347.8,2.30096476]
[1760086455958,0.1144,4348.1,4347.9,2.2999609]
[1760086456414,0.1144,4348.1,4348.0,2.299908]
[1760086456659,0.5657,4348.1,4348.0,2.299908]
[1760086456859,0.5657,4348.1,4347.9,2.29995636]
[1760086457072,0.5657,4348.1,4347.8,0.001]
[1760086457073,0.4513,4348.0,4347.8,0.001]
[1760086457486,0.1144,4348.1,4347.8,0.001]
[1760086457487,0.4513,4347.9,4347.8,0.001]
[1760086457964,0.4513,4347.9,4347.8,2.3010138]
[1760086458487,0.4513,4347.9,4347.8,0.001]
[1760086459063,0.4513,4347.9,4347.8,2.3010138]
[1760086459460,0.1144,4348.1,4348.0,2.299908]
[1760086460177,0.5657,4348.1,4348.0,2.299908]
[1760086461112,0.1144,4348.1,4348.0,2.299908]
[1760086462715,0.002,4348.3,4348.2,2.29980221]
[1760086462879,0.1164,4348.3,4348.2,2.29980221]
[1760086465510,0.002,4348.3,4348.2,2.29980221]
[1760086470238,0.002,4348.3,4348.2,2.86751518]
[1760086470419,0.002,4348.3,4348.2,3.23131518]
[1760086470596,0.002,4348.3,4348.2,3.34571518]
[1760086470934,0.002,4348.3,4348.2,3.67677982]
[1760086471110,0.002,4348.3,4348.2,7.80651254]
[1760086471312,0.002,4348.3,4348.2,7.7916934]
[1760086471535,0.002,4348.3,4348.2,8.5194999]
[1760086474211,0.002,4348.3,4348.2,8.2032544]
[1760086475901,0.0012,4348.3,4348.2,8.2032544]
[1760086480635,0.0012,4348.3,4348.2,8.3176544]
[1760086487152,0.0012,4348.3,4348.2,8.6338999]
[1760086487353,0.01,4348.9,4348.6,4.85753922]
[1760086487649,0.01,4348.9,4348.7,2.80010424]
[1760086487852,0.01,4348.9,4348.8,0.1144]
[1760086488042,0.01,4348.9,4348.8,2.29948491]
[1760086488435,0.4748,4348.9,4348.8,2.29948491]
[1760086488634,0.4748,4348.9,4348.8,2.76428491]
[1760086489429,0.4748,4348.9,4348.8,2.29948491]
[1760086490082,0.4748,4348.9,4348.7,0.4748]
[1760086490382,0.49354356,4348.8,4348.7,0.4748]
[1760086490548,0.49354356,4348.8,4348.2,2.29976185]
[1760086490744,0.02874356,4348.8,4348.2,2.29976185]
[1760086491044,0.4648,4348.7,4348.2,2.29976185]
[1760086491250,0.49354488,4348.6,4348.2,2.29976185]
[1760086491468,0.4648,4348.5,4348.1,2.30085054]
[1760086491675,0.01,4348.9,4348.2,2.31462086]
[1760086491876,0.4648,4348.8,4348.6,2.29956969]
[1760086492166,0.4648,4348.7,4348.6,2.29956969]
[1760086495349,0.4648,4348.7,4348.5,2.29962889]
[1760086495550,0.4648,4348.6,4348.5,2.29962889]
[1760086496345,0.4648,4348.6,4348.1,0.001]
[1760086496632,0.4648,4348.6,4348.1,2.30085294]
[1760086496845,0.4648,4348.5,4348.4,2.29968507]
[1760086497461,0.4648,4348.5,4348.1,0.001]
[1760086497783,0.4666,4348.4,4348.1,2.300833]
[1760086497996,0.01,4348.9,4348.5,2.29960844]
[1760086498158,0.01,4348.9,4348.6,2.29958053]
[1760086498774,0.1144,4348.6,4348.4,0.01481355]
[1760086498975,0.1144,4348.6,4348.5,2.29960637]
[1760086499888,0.5818,4348.6,4348.5,2.29960637]
[1760086500059,0.5818,4348.6,4348.3,2.29974071]
[1760086500253,0.5818,4348.6,4348.1,2.3008444]
[1760086500254,0.4674,4348.5,4348.1,2.3008444]
[1760086500565,0.1144,4348.6,4348.5,2.29964355]
[1760086501407,0.5818,4348.6,4348.3,2.2997445]
[1760086501560,0.5818,4348.6,4348.1,0.001]
[1760086501561,0.4674,4348.5,4348.4,2.29969421]
[1760086501910,0.4674,4348.5,4348.2,2.41418837]
[1760086502211,0.4674,4348.4,4348.3,2.29974426]
[1760086503073,0.4674,4348.4,4348.2,2.2997546]
[1760086503286,0.1144,4348.6,4348.2,2.2997546]
[1760086503468,0.4674,4348.3,4348.2,2.2997546]
[1760086503872,0.5818,4348.6,4348.3,2.29971983]
[1760086504210,0.4674,4348.5,4348.3,2.29971983]
[1760086504503,0.4674,4348.4,4348.3,2.29971983]
[1760086505070,0.1144,4348.6,4348.5,2.29964355]
[1760086506936,0.01,4348.9,4348.5,0.1144]
[1760086507217,0.01,4348.9,4348.7,2.29951083]
[1760086507521,0.4674,4348.8,4348.7,2.29951083]
[1760086507690,0.012,4348.9,4348.8,2.29948491]
[1760086508400,0.012,4348.9,4348.8,2.77231361]
[1760086508690,0.012,4348.9,4348.8,3.23971361]
[1760086509106,0.012,4348.9,4348.8,3.25452481]
[1760086509315,0.012,4348.9,4348.8,8.47666403]
[1760086509516,0.012,4348.9,4348.8,8.46185283]
[1760086513315,0.012,4348.9,4348.8,3.23971361]
[1760086514261,0.012,4348.9,4348.8,0.9402287]
[1760086514423,0.012,4348.9,4348.8,2.76688491]
[1760086516135,0.012,4348.9,4348.6,2.29957532]
[1760086516136,0.4794,4348.9,4348.6,2.29957532]
[1760086516452,0.4674,4348.8,4348.4,0.5818]
[1760086516618,0.012,4348.9,4348.4,0.5818]
[1760086516819,0.4674,4348.8,4348.4,0.5818]
[1760086517021,0.4674,4348.8,4348.3,0.001]
[1760086517323,0.5818,4348.8,4348.3,0.001]
[1760086518552,0.5818,4348.8,4348.5,2.29962853]
[1760086518553,0.1144,4348.8,4348.5,2.29962853]
[1760086518852,0.4674,4348.7,4348.6,2.29959067]
[1760086519364,0.4674,4348.7,4348.5,2.29963589]
[1760086520061,0.4666,4348.7,4348.5,2.29963589]
[1760086520569,0.1144,4348.8,4348.3,0.001]
[1760086521085,0.1144,4348.8,4348.4,2.29969644]
[1760086521295,0.1144,4348.8,4348.7,2.29953779]
[1760086525474,0.012,4348.9,4348.8,2.29948491]
[1760086525673,0.012,4348.9,4348.8,2.31429611]
[1760086526181,0.012,4348.9,4348.8,3.14709611]
[1760086526557,0.012,4348.9,4348.8,3.26149611]
[1760086528560,0.012,4348.9,4348.8,3.24668491]
[1760086528760,0.012,4348.9,4348.8,3.84991003]
[1760086529696,0.012,4348.9,4348.8,3.48451003]
[1760086533402,0.012,4348.9,4348.8,8.72226045]
[1760086533604,0.012,4348.9,4348.8,7.97643608]
[1760086535521,0.012,4348.9,4348.8,7.61103608]
[1760086535720,0.012,4348.9,4348.8,7.97643608]
[1760086538417,0.012,4348.9,4348.8,7.97643608]
[1760086541492,0.012,4348.9,4348.8,7.61103608]
[1760086541808,0.012,4348.9,4348.7,2.78456629]
[1760086541809,0.012,4348.9,4348.7,2.29953779]
[1760086542010,0.4628,4348.9,4348.8,2.31429661]
[1760086542208,0.0112,4348.9,4348.8,2.31429661]
[1760086542823,0.4628,4348.9,4348.8,2.31429661]
[1760086543327,0.0112,4348.9,4348.8,2.31429661]
[1760086544323,0.4628,4348.9,4348.8,2.29948491]
[1760086544924,0.4628,4348.9,4348.5,0.001]
[1760086545130,0.4516,4348.8,4348.6,2.29958443]
[1760086545424,0.4516,4348.7,4348.6,2.29958443]
[1760086546384,0.0112,4348.9,4348.6,2.29958443]
[1760086546595,0.4516,4348.8,4348.5,0.001]
[1760086546991,0.4314,4348.7,4348.5,0.001]
[1760086548114,0.0112,4348.9,4348.6,2.29954198]
[1760086548314,0.0112,4348.9,4348.7,2.29953541]
[1760086548730,0.4314,4348.8,4348.7,2.29953541]
[1760086549030,0.0112,4348.9,4348.8,2.29948491]
[1760086551506,0.0112,4348.9,4348.8,2.80411344]
[1760086551828,0.0112,4348.9,4348.8,3.28391344]
[1760086552235,0.0112,4348.9,4348.8,3.29872464]
[1760086552634,0.0112,4348.9,4348.8,3.73012464]
[1760086554459,0.0112,4348.9,4348.8,3.71531344]
[1760086560424,0.0112,4348.9,4348.8,4.02658829]
[1760086561148,0.0112,4348.9,4348.8,3.71531344]
[1760086561955,0.0112,4348.9,4348.8,3.34991344]
[1760086562152,0.0112,4348.9,4348.8,7.47643949]
[1760086562450,0.0112,4348.9,4348.8,3.34991344]
[1760086564128,0.0104,4348.9,4348.8,3.34991344]
[1760086564338,0.0104,4348.9,4348.8,2.84528491]
[1760086565643,0.4422,4348.9,4348.8,2.41388491]
[1760086565846,0.4422,4348.9,4348.8,2.29948491]
[1760086566738,0.4422,4348.9,4348.6,0.1144]
[1760086566942,0.4318,4348.8,4348.7,2.29953779]
[1760086567926,0.0104,4348.9,4348.6,2.29959067]
[1760086568166,0.4318,4348.8,4348.7,2.29953779]
[1760086568666,0.0104,4348.9,4348.8,2.29948491]
[1760086568869,0.0104,4348.9,4348.8,2.30048491]
[1760086569070,0.4422,4348.9,4348.8,2.30048491]
[1760086570371,0.0104,4348.9,4348.8,2.30048491]
[1760086572068,0.4422,4348.9,4348.8,2.30048491]
[1760086573275,0.4422,4348.9,4348.8,0.001]
[1760086573567,0.4422,4348.9,4348.8,2.30048491]
[1760086574337,0.4422,4348.9,4348.8,0.001]
[1760086574776,0.4422,4348.9,4348.8,2.30048491]
[1760086574941,0.4422,4348.9,4348.8,0.001]
[1760086575142,0.4422,4348.9,4348.8,2.30048491]
[1760086578672,0.4422,4348.9,4348.8,0.001]
[1760086579041,0.4422,4348.9,4348.8,2.30048491]
[1760086583388,0.0104,4348.9,4348.8,2.30048491]
[1760086583550,0.4422,4348.9,4348.8,2.30048491]
[1760086583969,0.4422,4348.9,4348.8,0.001]
[1760086584281,0.0104,4348.9,4348.8,2.30048491]
[1760086585078,0.4422,4348.9,4348.8,2.30048491]
[1760086585544,0.0104,4348.9,4348.8,2.30048491]
[1760086586168,0.0096,4348.9,4348.8,2.30048491]
[1760086586360,0.0096,4348.9,4348.8,0.001]
[1760086586555,0.4414,4348.9,4348.8,2.31529661]
[1760086586990,0.0096,4348.9,4348.8,2.31529661]
[1760086589190,0.0096,4348.9,4348.8,2.30048491]
[1760086589352,0.0096,4348.9,4348.8,3.22270593]
[1760086589990,0.0096,4348.9,4348.8,3.58810593]
[1760086590605,0.0096,4348.9,4348.8,3.22270593]
[1760086590755,0.0096,4348.9,4348.8,3.58810593]
[1760086590951,1e-08,4348.9,4348.8,3.70250593]
[1760086591169,1e-08,4348.9,4348.8,4.30875906]
[1760086593613,1e-08,4348.9,4348.8,9.16445039]
[1760086594511,1e-08,4348.9,4348.8,8.87020169]
[1760086597620,1e-08,4348.9,4348.8,8.55819726]
[1760086597783,1e-08,4348.9,4348.8,8.85244596]
[1760086598289,1e-08,4348.9,4348.8,9.16445039]
[1760086600588,1e-08,4348.9,4348.8,9.27885039]
[1760086600894,1e-08,4349.9,4349.8,2.29895627]
[1760086601091,1e-08,4349.9,4349.8,7.94124843]
[1760086601296,1e-08,4349.9,4349.8,8.29185044]
[1760086601720,1e-08,4349.9,4349.8,8.38395087]
[1760086602795,1e-08,4349.9,4349.8,8.55395087]
[1760086603980,1e-08,4349.9,4349.8,3.69825954]
[1760086604186,1e-08,4349.9,4349.8,8.55395087]
[1760086604606,1e-08,4349.9,4349.8,3.69825954]
[1760086604807,1e-08,4349.9,4349.8,3.4010531]
[1760086605091,1e-08,4349.9,4349.8,3.38625511]
[1760086605585,1e-08,4349.9,4349.8,3.4010531]
[1760086606388,1e-08,4349.9,4349.8,3.2310531]
[1760086606586,1e-08,4349.9,4349.8,3.21625511]
[1760086606828,1e-08,4349.9,4349.8,2.3910567]
[1760086608106,0.00200001,4349.9,4349.8,2.3910567]
[1760086608306,0.00120001,4349.9,4349.8,2.3910567]
[1760086609913,0.00120001,4349.9,4349.8,2.40585469]
[1760086610113,0.00120001,4349.9,4349.8,3.09783818]
[1760086610913,0.00120001,4349.9,4349.8,3.21223818]
[1760086611111,0.00120001,4349.9,4349.8,2.88565469]
[1760086612001,0.00120001,4349.9,4349.8,3.88969207]
[1760086612202,0.00120001,4349.9,4349.8,4.10187556]
[1760086613335,0.00120001,4349.9,4349.8,3.77529207]
[1760086613516,0.00120001,4349.9,4349.8,3.39509408]
[1760086614419,0.00120001,4349.9,4349.8,3.76049408]
[1760086615332,0.00120001,4349.9,4349.8,3.77529207]
[1760086621026,0.00120001,4349.9,4349.8,4.10187556]
[1760086622027,0.00120001,4349.9,4349.8,4.21627556]
[1760086622717,0.00120001,4349.9,4349.8,4.20147757]
[1760086623159,0.00120001,4349.9,4349.8,3.87489408]
[1760086625220,0.00120001,4349.9,4349.8,3.50949408]
[1760086625420,0.00120001,4349.9,4349.8,3.87489408]
[1760086626353,0.00120001,4349.9,4349.8,3.87589408]
[1760086627549,0.00120001,4349.9,4349.8,3.89069207]
[1760086628055,0.00120001,4349.9,4349.8,3.87589408]
[1760086630342,0.00040001,4349.9,4349.8,3.87589408]
[1760086630791,0.00040001,4349.9,4349.8,3.51049408]
[1760086631085,0.00040001,4349.9,4349.8,2.5064567]
[1760086635845,0.47240001,4349.9,4349.8,2.5064567]
[1760086636843,0.00040001,4349.9,4349.8,2.5064567]
[1760086637480,0.00040001,4349.9,4349.8,2.52125469]
[1760086637785,0.00040001,4349.9,4349.8,2.88665469]
[1760086638080,0.00040001,4349.9,4349.8,4.24347836]
[1760086638278,0.00040001,4349.9,4349.8,4.12907836]
[1760086638478,0.00040001,4349.9,4349.8,4.11428037]
[1760086638686,0.00040001,4349.9,4349.8,4.12907836]
[1760086640566,0.00040001,4349.9,4349.8,4.11428037]
[1760086642206,0.00040001,4349.9,4349.8,4.12907836]
[1760086642376,0.00040001,4349.9,4349.8,4.11428037]
[1760086643095,0.01,4350.9,4349.9,2.29890342]
[1760086643414,0.01,4350.9,4350.8,7.2832192]
[1760086643896,0.01,4350.9,4350.8,7.6486192]
[1760086644208,0.01,4350.9,4350.8,7.74069609]
[1760086644427,1e-08,4350.9,4350.8,7.74069609]
[1760086645476,1e-08,4350.9,4350.8,8.0613173]
[1760086645680,0.00200001,4350.9,4350.8,9.09729892]
[1760086648224,0.00200001,4350.9,4350.8,8.89107771]
[1760086649719,0.00200001,4350.9,4350.8,9.21169892]
[1760086651118,0.00200001,4350.9,4350.8,4.03538638]
[1760086652428,0.00120001,4350.9,4350.8,4.03538638]
[1760086655444,0.00120001,4350.9,4350.8,8.15811044]
[1760086657748,0.00120001,4350.9,4350.8,4.03538638]
[1760086658047,0.00120001,4350.9,4350.8,8.15811044]
[1760086662750,0.00120001,4350.9,4350.8,8.47873165]
[1760086665254,0.002,4351.4,4350.9,2.61899625]
[1760086665562,0.002,4351.4,4351.3,6.53528782]
[1760086666060,0.002,4351.4,4351.3,6.90068782]
[1760086667059,0.002,4351.4,4351.3,6.99275073]
[1760086667965,0.002,4351.4,4351.3,2.87002667]
[1760086668267,0.002,4351.4,4351.3,6.99275073]
[1760086668473,0.002,4351.4,4351.3,8.04786331]
[1760086668673,0.002,4351.4,4351.3,3.92513925]
[1760086668829,0.002,4351.4,4351.3,2.50462667]
[1760086669032,0.002,4351.4,4351.3,2.87002667]
[1760086669672,0.002,4351.4,4351.3,4.79002667]
[1760086670466,0.002,4351.4,4351.3,8.54735073]
[1760086670629,0.002,4351.4,4351.3,8.91275073]
[1760086670945,0.002,4351.4,4351.3,10.03384928]
[1760086674572,0.0012,4351.4,4351.3,10.03384928]
[1760086680476,0.0012,4351.4,4351.3,10.35447049]
[1760086683590,0.0012,4351.4,4351.3,10.24007049]
[1760086683897,0.0012,4351.4,4351.3,10.87367049]
[1760086685401,1e-08,4351.9,4351.4,4.85171095]
[1760086685577,1e-08,4351.9,4351.8,7.05422377]
[1760086685781,1e-08,4351.9,4351.8,7.37484498]
[1760086686288,1e-08,4352.2,4352.1,0.6336]
[1760086686493,1e-08,4352.2,4352.1,9.3094542]
[1760086686804,1e-08,4352.2,4352.1,11.91185704]
[1760086687096,0.002,4352.3,4352.2,4.21768852]